Cogmind - Beta 15 @@@ ROGUE MODE // 2025.06.19 @ 03:39:15 Player: CL-1C0 Result: Destroyed by T9-VB7(R) with Subdweller Machine Gun Performance ------------- Evolutions (0) 0 Regions Visited (3) 600 Robots Destroyed (10) 50 Value Destroyed (407) 407 Prototype IDs (0) 0 Alien Tech Used (0) 0 Bonus (0) 0 TOTAL SCORE: 1057 Bonus ------- None Cogmind --------- Core Integrity 0/250 Matter 81/300 Energy 100/100 System Corruption 0% Temperature Cool (0) Movement Rolling (110) Location -10/Subcaves Parts ------- > --- POWER (1) -------- (None) > --- PROPULSION (2) --- Subdweller Monowheel > --- UTILITY (2) ------ (None) > --- WEAPON (2) ------- Battle Cannon > --- INVENTORY (5) ---- Subdweller Machine Gun Subdweller Shrapnel Launcher Peak State ------------ > --- POWER ------------ (None) > --- PROPULSION ------- Light Treads Light Treads > --- UTILITY ---------- (None) > --- WEAPON ----------- Battle Rifle Subdweller Machine Gun > --- INVENTORY -------- Rocket Launcher Subdweller Shrapnel Launcher [Rating: 6] Favorites ----------- Power None Propulsion Light Treads Treads Light Treads Wheel Subdweller Monowheel Utility None Weapon Battle Rifle Energy Cannon Subdweller Beam Cannon Ballistic Gun Battle Rifle Ballistic Cannon Battle Cannon Launcher Rocket Launcher Build | -11 -10 -10 -10 ------- Run | Yrd Mat Min Sub Slots Evolved . | . . . . Power . | . . . . Propulsion . | . . . . Utility . | . . . . Weapon . | . . . . Parts Attached 8 | 2 . . 6 Power . | . . . . Engine . | . . . . Core . | . . . . Reactor . | . . . . Propulsion 3 | 2 . . 1 Treads 2 | 2 . . . Leg . | . . . . Wheel 1 | . . . 1 Hover . | . . . . Flight . | . . . . Utility . | . . . . Device . | . . . . Storage . | . . . . Processor . | . . . . Hackware . | . . . . Protection . | . . . . Artifact . | . . . . Weapon 5 | . . . 5 Energy Gun . | . . . . Energy Cannon 1 | . . . 1 Ballistic Gun 2 | . . . 2 Ballistic Cannon 1 | . . . 1 Launcher 1 | . . . 1 Special Weapon . | . . . . Impact Weapon . | . . . . Slashing Weapon . | . . . . Piercing Weapon . | . . . . Special Melee Weapon . | . . . . Unidentified Prototypes . | . . . . Parts Lost 5 | . . . 5 Power . | . . . . Propulsion 2 | . . . 2 Utility . | . . . . Weapon 3 | . . . 3 Highest Loss Streak 2 | . . . 2 To Critical Strikes . | . . . . Average Backups 2 | 4 . . 2 Power . | . . . . Propulsion . | 3 . . . Utility . | . . . . Weapon 2 | 1 . . 2 Tool/Special . | . . . . Unused Backups 1 | . . . 1 Power . | . . . . Propulsion . | . . . . Utility . | . . . . Weapon 1 | . . . 1 Tool/Special . | . . . . Average Slot Usage (%) 33 | . 28 28 35 Treads 23 | . 28 28 21 Wheel 1 | . . . 1 Ballistic Gun 4 | . . . 6 Ballistic Cannon 2 | . . . 3 Launcher 1 | . . . 1 Peak Build Rating 6 | 2 2 2 6 Average Rating 3 | 1 2 2 3 On Entrance 3 | 6 2 2 2 Naked Turns . | . . . . Heaviest Build 6 | . . . 6 Greatest Support 20 | 3 3 3 20 Greatest Overweight (x) 1 | . . . 1 Average Overweight (x) . | . . . . Largest Inventory Capacity 5 | 5 5 5 5 Average Capacity 5 | 5 5 5 5 Most Carried 5 | 4 . 1 5 Average Carried 2 | 2 . . 2 Final Capacity 5 | 5 5 5 5 Final Carried 2 | . . 1 2 Class Distribution -------------------- 100% | Mutant Dominant Class ---------------- Mutant | -10/Materials Mutant | -10/Mines Mutant | -10/Subcaves Resources | -11 -10 -10 -10 ----------- Run | Yrd Mat Min Sub Matter Collected 348 | 200 . . 148 Remotely . | . . . . Salvage Created 252 | . . . 252 Parts 16 | . . . 16 Haulers Intercepted . | . . . . Recyclers Shooed . | . . . . Parts Field Recycled . | . . . . Retrieved Matter . | . . . . Parts Self-Destructed 7 | . . . 7 Prevented . | . . . . Kills | -11 -10 -10 -10 ------- Run | Yrd Mat Min Sub Combat Hostiles Destroyed 10 | . . . 10 Guns 3 | . . . 3 Cannons 1 | . . . 1 AOE 6 | . . . 6 Classes Destroyed 2 | . . . 2 Grunt 1 | . . . 1 Subdweller 9 | . . . 9 Best Kill Streak 4 | . . . 4 Combat Bots Only 4 | . . . 4 Max Kills in Single Turn 1 | . . . 1 Gunslinging . | . . . . Exploded 1 | . . . 1 Melee . | . . . . Uniques/NPCs Destroyed . | . . . . Combat | -11 -10 -10 -10 -------- Run | Yrd Mat Min Sub Hostile Shots Fired 47 | . . . 47 Missed 17 | . . . 17 Hits 30 | . . . 30 Projectile 30 | . . . 30 Critical Strikes 2 | . . . 2 Damage Taken 870 | . . . 870 Core 251 | . . . 251 Absorbed by Shields . | . . . . Core Remaining (%) 100 | 100 . . . Volleys Fired 45 | . . . 45 Largest 2 | . . . 2 Hottest 80 | . . . 80 Shots Fired 57 | . . . 57 Gun 26 | . . . 26 Cannon 18 | . . . 18 Launcher 13 | . . . 13 Special . | . . . . Kinetic 37 | . . . 37 Thermal 7 | . . . 7 Explosive 13 | . . . 13 Electromagnetic . | . . . . Robot Hit Streak 32 | . . . 32 Robot Miss Streak 1 | . . . 1 Penetration Max . | . . . . Secondary Targets . | . . . . Shots Hit Robots 37 | . . . 37 Core Hits 19 | . . . 19 Critical Kills . | . . . . Critical Parts Destroyed . | . . . . Critical Strikes . | . . . . Melee Attacks . | . . . . Impact . | . . . . Slashing . | . . . . Piercing . | . . . . Sneak Attacks . | . . . . Combat Hostiles . | . . . . Follow-up Attacks . | . . . . Damage Inflicted 1250 | . . . 1250 Guns 178 | . . . 178 Cannons 293 | . . . 293 Explosions 779 | . . . 779 Melee . | . . . . Ramming . | . . . . Kinetic 300 | . . . 300 Thermal 171 | . . . 171 Explosive 779 | . . . 779 Electromagnetic . | . . . . Impact . | . . . . Slashing . | . . . . Piercing . | . . . . Highest Corruption . | . . . . Average Corruption . | . . . . Corruption Purged . | . . . . Corruption Blocked . | . . . . Overload Shots . | . . . . Overflow Damage 23 | . . . 23 Projectiles . | . . . . Explosions 23 | . . . 23 Melee . | . . . . Knockbacks 2 | . . . 2 Impact . | . . . . Kinetic 2 | . . . 2 Secondary . | . . . . Self-Inflicted Damage 271 | . . . 271 Shots 8 | . . . 8 Rammed 1 | . . 1 . Targets Rammed 1 | . . 1 . Kicked . | . . . . Crushed . | . . . . Highest Temperature 244 | . . . 244 Average Temperature 88 | . . . 88 Received Heat Transfer 415 | . . . 415 Siege Activations . | . . . . Martial Activations . | . . . . Shielding Activations . | . . . . Robots Disrupted . | . . . . Combat Hostiles . | . . . . Robots Corrupted . | . . . . Combat Hostiles . | . . . . Parts Fried . | . . . . Impact Corruptions . | . . . . Robots Melted . | . . . . Combat Hostiles . | . . . . Parts Melted . | . . . . Heat Transferred 222 | . . . 222 Parts Sabotaged . | . . . . Parts Stolen . | . . . . Parts Stripped . | . . . . Power Chain Reactions . | . . . . Alert | -11 -10 -10 -10 ------- Run | Yrd Mat Min Sub Maximum Alert Level . | . . . . Low Security (%) 100 | 100 100 100 . Level 1 . | . . . . Level 2 . | . . . . Level 3 . | . . . . Level 4 . | . . . . Level 5 . | . . . . High Security . | . . . . Max Security . | . . . . Peak Influence . | . . . . Initial . | . . . . Average . | . . . . Influence Increases 30 | . . . 30 Destroy 0b10 Robot/C 20 | . . . 20 Destroy Leader 10 | . . . 10 Influence Decreases 30 | . . . 30 Time Decay 20 | . . . 20 Lost Part 10 | . . . 10 Squads Dispatched . | . . . . Investigation . | . . . . Extermination . | . . . . Reinforcement . | . . . . Assault . | . . . . Garrison . | . . . . Intercept . | . . . . Searches Triggered . | . . . . Construction Impeded . | . . . . Haulers Reinforced . | . . . . Active Scanning Responses . | . . . . Cargo Convoy Interrupts . | . . . . Stealth | -11 -10 -10 -10 --------- Run | Yrd Mat Min Sub Distress Signals . | . . . . Communications Jammed . | . . . . Distress Signals . | . . . . Times Spotted 13 | . 2 . 11 Peak Tracking Total 3 | . 2 . 3 Tactical Retreats . | . . . . Traps | -11 -10 -10 -10 ------- Run | Yrd Mat Min Sub Traps Triggered . | . . . . Indirectly . | . . . . Trap Hack Attempts . | . . . . Triggered . | . . . . Disarmed . | . . . . Reprogrammed . | . . . . Reused . | . . . . Traps Extracted . | . . . . Installed . | . . . . Triggered . | . . . . Machines | -11 -10 -10 -10 ---------- Run | Yrd Mat Min Sub Machines Disabled . | . . . . Max in Single Turn . | . . . . Machines Repaired . | . . . . Machines Dismantled . | . . . . Machines Sabotaged . | . . . . Overloaded Fab Kills . | . . . . Hacking | -11 -10 -10 -10 --------- Run | Yrd Mat Min Sub Machines Accessed . | . . . . Terminals . | . . . . Fabricators . | . . . . Repair Stations . | . . . . Recycling Units . | . . . . Scanalyzers . | . . . . Garrison Access . | . . . . Total Hacks . | . . . . Successful . | . . . . Failed . | . . . . Catastrophic . | . . . . Database Lockouts . | . . . . Manual . | . . . . Terminals . | . . . . Fabricators . | . . . . Repair Stations . | . . . . Recycling Units . | . . . . Scanalyzers . | . . . . Garrison Access . | . . . . Terminal Hacks . | . . . . Fabricator Hacks . | . . . . Repair Station Hacks . | . . . . Recycling Unit Hacks . | . . . . Scanalyzer . | . . . . Garrison Access Hacks . | . . . . Unauthorized Hacks . | . . . . Terminals . | . . . . Fabricators . | . . . . Repair Stations . | . . . . Recycling Units . | . . . . Scanalyzers . | . . . . Garrison Access . | . . . . Data Cores Recovered . | . . . . Used . | . . . . Hacking Detections . | . . . . Full Trace Events . | . . . . Feedback Events . | . . . . Feedback Blocked . | . . . . Robot Schematics Acquired . | . . . . Robots Built . | . . . . Authchips . | . . . . Time . | . . . . Total Robot Build Rating . | . . . . Part Schematics Acquired . | . . . . Parts Built . | . . . . Authchips . | . . . . Time . | . . . . Total Part Build Rating . | . . . . Parts Repaired . | . . . . Time . | . . . . Parts Recycled . | . . . . Recycled Matter . | . . . . Retrieved Matter . | . . . . Retrieved Components . | . . . . Parts Scanalyzed . | . . . . Part Schematics Acquired . | . . . . Parts Damaged . | . . . . Bothacking | -11 -10 -10 -10 ------------ Run | Yrd Mat Min Sub Used RIF Installer . | . . . . Robots Hacked . | . . . . Non-combat . | . . . . Combat . | . . . . Robot Hacks Applied . | . . . . Relay Couplers Released . | . . . . Fabnet Peak Effective % . | . . . . Robots Rewired . | . . . . Allies Hacked . | . . . . Hacks Repelled . | . . . . Allies | -11 -10 -10 -10 -------- Run | Yrd Mat Min Sub Total Allies . | . . . . Largest Group . | . . . . Highest-Rated Group . | . . . . Highest-Rated Ally . | . . . . Total Orders . | . . . . Ally Attacks . | . . . . Total Damage . | . . . . Kills . | . . . . Allies Corrupted . | . . . . Allies Melted . | . . . . Intel | -11 -10 -10 -10 ------- Run | Yrd Mat Min Sub Active Infowar (turns) . | . . . . Robot Analysis Total . | . . . . Derelict Logs Recovered 1 | . . 1 . Drone Launches . | . . . . Drone Recoveries . | . . . . Exploration | -11 -10 -10 -10 ------------- Run | Yrd Mat Min Sub Turns Passed 613 | 4 33 140 436 Spaces Moved 740 | 1 65 272 402 Core 704 | 1 65 272 366 Treads 8 | . . . 8 Legs . | . . . . Wheels 28 | . . . 28 Hover . | . . . . Flight . | . . . . Fastest Speed 50 | 50 50 50 50 Average Speed 57 | 50 50 50 64 Slowest Speed 160 | 50 50 50 160 Overloaded Moves . | . . . . Propulsion Burnouts . | . . . . Robots Hopped . | . . . . Potential Cave-ins . | . . . . Cave-ins Triggered . | . . . . Exploration Rate (%) 22 | 2 23 52 14 Regions Visited 3 Branch Regions 2 Pre-discovered Areas 1 | . . 1 . Known Exits Taken . | . . . . Unknown Exits Taken 3 | 1 1 1 . Scrap Searched 1 | . . 1 . Spaces Dug 48 | . . . 48 Terrain Destroyed 121 | . . . 121 Melee . | . . . . Projectile 5 | . . . 5 AOE 116 | . . . 116 Terrain Rammed . | . . . . Walls Destroyed . | . . . . Machines Disabled . | . . . . Actions | -11 -10 -10 -10 --------- Run | Yrd Mat Min Sub Total 865 | 5 64 274 522 Wait 58 | . . 1 57 Move 737 | . 64 271 402 Hop . | . . . . Pick Up 5 | . . 1 4 Fast Attach 2 | . . . 2 Attach 8 | 2 . . 6 Detach 3 | . . . 3 Swap 3 | . . . 3 Drop 3 | 3 . . . Fire 45 | . . . 45 Melee . | . . . . Ram . | . . . . Kick . | . . . . Crush 1 | . . 1 . Escape Stasis . | . . . . Rewire . | . . . . Trap . | . . . . Miscellaneous . | . . . . Route ------- -11/Scrapyard -10/Materials -10/Mines (discovered 2 exits: [*Mat] / [*Sub]) -10/Subcaves (discovered 1 exit: [*Mat]) History --------- Turn | Location | Event 1 | -11/Scrapyard | Released all parts (6) 5 | -11/Scrapyard | Discovered new exit (range 0) 5 | -11/Scrapyard | Entered Materials 30 | -10/Materials | Discovered new exit (range 16) 38 | -10/Materials | Entered Mines 120 | -10/Mines | Learned location of Recycling (-7) 120 | -10/Mines | Discovered new exit (range 6) 129 | -10/Mines | Received a Rocket Launcher from a helpful Derelict 174 | -10/Mines | Discovered new exit (range 9) 178 | -10/Mines | Entered Subcaves 179 | -10/Subcaves | Approached by a straggling Scientist 261 | -10/Subcaves | Shifting Twisted Machinery released Sub. Shrapnel Launcher 272 | -10/Subcaves | Shifting Twisted Machinery released Sub. Monowheel 284 | -10/Subcaves | Discovered new exit (range 4) 309 | -10/Subcaves | Build established: Mutant 397 | -10/Subcaves | A swath of the cavern ceiling suddenly collapsed 488 | -10/Subcaves | Ambushed by Subdweller buried in earth 488 | -10/Subcaves | Ambushed by Subdweller buried in earth 490 | -10/Subcaves | Ambushed by Subdweller buried in earth 498 | -10/Subcaves | Ambushed by Subdweller buried in earth 499 | -10/Subcaves | Core integrity fell below 50% 530 | -10/Subcaves | Ambushed by angry Subdweller bent on revenge 536 | -10/Subcaves | Core integrity fell below 20% 614 | -10/Subcaves | Destroyed by T9-VB7(R) with Subdweller Machine Gun Last Messages --------------- 00505_ ML-CSX(R) destroyed. 00507_ The unstable cave ceiling collapses. 00507_ Acquired 3 matter. 00508_ Acquired Battle Cannon. 00513_ The unstable cave ceiling collapses. 00530_ UU-NU6(R) angrily emerges from the Twisted Machinery. 00530_ UU-NU6(R): "OHNO!" 00531_ G-47 Trooper destroyed. 00532_ Lgt. Treads destroyed. PH-YHP(c): "I think it's somewhere east of here" 00539_ G-34 Mercenary destroyed. 00542_ Aluminum Leg fries itself beyond repair. 00554_ UU-NU6(R) knocked back. 00557_ UU-NU6(R) destroyed. 00560_ Acquired 47 matter. 00562_ Acquired Sub. Monowheel. 00569_ The unstable cave ceiling collapses. PH-YHP(c): "I think it's somewhere southeast of here" 00598_ T9-VB7(R) knocked back. 00612_ Battle Rifle destroyed. Map ----- +----------------------------------------------------+ | ?????????????????????????????????????????????????? | | ?????????????????????????????????????????????????? | | ?????????????????????????????????????????????????? | | ?????????????????????????????????????????????????? | | ?????????????????????????????????????????????????? | | ?????????????????????????????????????????????????? | | ?????????????????????????????????????????????????? | | ?????????????????????????????????????????????????? | | ?????????????????????????????????????????????????? | | ?????????????????????????????????????????????????? | | ?????????????????????????????????????????????????? | | ?????????????????????????????????????????????????? | | ?????????????????????????????????????????????????? | | ???????????????????????"?????????????????????????? | | ??????????????????????? ???#?????????????????????? | | ??????????????????????? ???"?????????????????????? | | ?????????????????#"##?? ??? ????????????????????? | | ????????????????##"""? ??""?????????????????????? | | ??##########????#"""#? ?? "?????????????????????? | | ### ## #????#"""#? #??%"?????????????????????? | | ######""##? ##? ##????????????????????? | | ## "#? #? "#????????????????????? | | # # "#? "##R#?????????????????????? | | ### ### ## ######;;#?????????????????????? | | #?# ## #######"" #; #?????????????????????? | | #?# # ####?????#"###@#???###????????????????? | | #?# #??######"##;######"#????????????????? | | ###?# ## ##??#"#"#""#]*"##""""#????????????????? | | ######### #???#""#"";;;## " ""##????????????????? | | ##?## ##### #""#### #####?????????????????? | | #?# ###""#### ##????????????????????? | | #?# ##### "#""#### #????????????????????? | | & ### ##"??# ##"# ### #????????????????????? | | ## #"$"?# " #?# ###????????????????????? | | ## # "$## ####?#####?????????????????????? | | ## #""$# ## #??????????????????????????????? | | ### #### #####??????????????????????????????? | | #### ###????????????????????????????????? | | ##?# #????????????????????????????????? | | # #### #????????????????????????????????? | | # ### # #????????????????????????????????? | | ##### #????????????????????????????????? | | ### ### # # ####?????????????????????????????? | | ??###?# # #?????????????????????????????? | | ????### # #?????????????????????????????? | | ???## ## ### ##????????????????????????????? | | ?### !## #####??????????????????????????? | | ?# %&[ " !#??????????????????????????? | | ?##### % " #%#??????????????????????????? | | ?????## " =##?????????????????????????? | +----------------------------------------------------+ Best States ------------- Heat Dissipation 25 Energy Generation 5 Energy Capacity 100 Matter Stores 286 Matter Capacity 300 Sight Range 16 Terrain Scan Density 10 Evasion (%) 50 Recoil Reduction 2 Item Schematics ----------------- None Robot Schematics ------------------ None Fabricated ------------ Nothing Repaired ---------- Nothing Alien Tech Used ----------------- None Achievements -------------- None Challenges ------------ None Game ------ Seed ForceSigixCompressor Manual? 0 Play Time 00:09:01 Cumulative 544.2 hours Start 2025.06.19 @ 03:32:23 End 2025.06.19 @ 03:39:15 Sessions 1 Manual Loads 0 Difficulty Rogue Special Mode None Game No. 656 Rogue 656 Adventurer 0 Explorer 0 Win Type - Total 19 Types 13/0/5/1/0/0/0/0/0/0 Lore% 84 Gallery% 83 Achievement% 82 Wizard Run 0 Options --------- Layout 0 ASCII 0 Keyboard 0 Movement Numpad Keybinds 0 Fullscreen 1 Font 18/SmallcapsGlow Map View 76x50 Zoom Use 0% Tactical HUD 1 Map Filters NONE Filters NONE Steam 1 RUN: 2cf615b0-a4e2-4431-a5a0-4b65e69d5c7a